Cogmind - Beta 13 @@@ ROGUE MODE // 2024.04.26 @ 19:10:19 Player: Gold Spoon Result: Self-destructed Performance ------------- Evolutions (2) 1000 Regions Visited (5) 1000 Robots Destroyed (42) 210 Value Destroyed (1099) 1099 Prototype IDs (26) 520 Alien Tech Used (0) 0 Bonus (306) 306 TOTAL SCORE: 4135 Bonus ------- High Alert Combat Kills 6 Aligned with FarCom 300 Cogmind --------- Core Integrity 434/550 Matter 140/300 Energy 84/100 System Corruption 0% Temperature Cool (0) Movement Treading (320) Ox2 Location -8/Materials Parts ------- > --- POWER (1) -------- (None) > --- PROPULSION (3) --- Light Treads > --- UTILITY (5) ------ Improved Heat Sink High-capacity Storage Unit Signal Interpreter Advanced Targeting Computer Hacking Suite > --- WEAPON (2) ------- Enhanced Autogun > --- INVENTORY (20) --- Targeting Computer Advanced Targeting Computer Army-in-a-Box (30/30) Peak State ------------ > --- POWER ------------ (None) > --- PROPULSION ------- Light Treads Light Treads Armored Treads > --- UTILITY ---------- High-capacity Storage Unit Signal Interpreter Advanced Targeting Computer Hacking Suite > --- WEAPON ----------- Enhanced Autogun Assault Cannon > --- INVENTORY -------- Targeting Computer Advanced Targeting Computer Army-in-a-Box Assault Rifle Rocket Launcher [Rating: 26] Favorites ----------- Power Light Ion Engine Engine Light Ion Engine Propulsion Light Treads Treads Light Treads Utility Advanced Targeting Computer Device Improved Heat Sink Storage High-capacity Storage Unit Processor Advanced Targeting Computer Hackware Hacking Suite Weapon Light Assault Rifle Ballistic Gun Light Assault Rifle Ballistic Cannon Assault Cannon Launcher Grenade Launcher Build | -11 -10 -10 -10 -9 -8 ------- Run | Yrd Mat Min Exi Min Mat Slots Evolved 4 | . . . . . 4 Power . | . . . . . . Propulsion 1 | . . . . . 1 Utility 3 | . . . . . 3 Weapon . | . . . . . . Parts Attached 33 | 6 5 6 1 3 12 Power 2 | 1 . . . 1 . Engine 2 | 1 . . . 1 . Core . | . . . . . . Reactor . | . . . . . . Propulsion 6 | 2 . 2 . . 2 Treads 6 | 2 . 2 . . 2 Leg . | . . . . . . Wheel . | . . . . . . Hover . | . . . . . . Flight . | . . . . . . Utility 12 | 1 3 2 1 . 5 Device 1 | . . . . . 1 Storage 7 | 1 2 1 1 . 2 Processor 3 | . 1 1 . . 1 Hackware 1 | . . . . . 1 Protection . | . . . . . . Artifact . | . . . . . . Weapon 13 | 2 2 2 . 2 5 Energy Gun . | . . . . . . Energy Cannon . | . . . . . . Ballistic Gun 8 | 2 1 1 . 1 3 Ballistic Cannon 1 | . . . . . 1 Launcher 4 | . 1 1 . 1 1 Special Weapon . | . . . . . . Impact Weapon . | . . . . . . Slashing Weapon . | . . . . . . Piercing Weapon . | . . . . . . Special Melee Weapon . | . . . . . . Unidentified Prototypes 1 | . . . . . 1 Parts Lost 10 | . . 2 . 1 7 Power 2 | . . . . 1 1 Propulsion 4 | . . 1 . . 3 Utility 1 | . . 1 . . . Weapon 3 | . . . . . 3 Highest Loss Streak 4 | . . 2 . 1 4 To Critical Strikes . | . . . . . . Average Slot Usage (%) 91 | . 94 99 100 95 80 Engine 11 | . 14 14 14 9 6 Treads 24 | . 28 27 28 28 18 Storage 12 | . 14 14 14 14 9 Processor 14 | . 8 13 14 14 18 Hackware 3 | . . . . . 9 Ballistic Gun 22 | . 27 27 28 26 14 Ballistic Cannon 1 | . . . . . 3 Naked Turns . | . . . . . . Heaviest Build 51 | 11 13 18 46 46 51 Greatest Support 60 | 40 40 40 40 40 60 Greatest Overweight (x) 2 | . . . 1 1 2 Average Overweight (x) . | . . . . 1 . Largest Inventory Capacity 20 | 8 20 10 20 20 20 Average Capacity 14 | 7 8 8 15 20 19 Most Carried 11 | 5 8 8 11 11 11 Average Carried 7 | 1 4 7 8 10 9 Final Capacity 20 | 8 8 10 20 20 20 Final Carried 11 | 1 8 6 11 10 8 Class Distribution -------------------- 91% | Mutant 8% | Scavenger-Mutant Dominant Class ---------------- Mutant | -10/Materials Mutant | -10/Mines Mutant | -10/Exiles Mutant | -9/Mines Mutant | -8/Materials Resources | -11 -10 -10 -10 -9 -8 ----------- Run | Yrd Mat Min Exi Min Mat Matter Collected 953 | 184 117 245 . 5 402 Remotely . | . . . . . . Salvage Created 1161 | . 245 131 . 50 735 Parts 86 | . 21 8 . 12 45 Haulers Intercepted . | . . . . . . Recyclers Shooed 2 | . . . . . 2 Parts Field Recycled . | . . . . . . Retrieved Matter . | . . . . . . Parts Self-Destructed . | . . . . . . Prevented . | . . . . . . Kills | -11 -10 -10 -10 -9 -8 ------- Run | Yrd Mat Min Exi Min Mat Combat Hostiles Destroyed 33 | . 6 5 . 4 18 Guns 14 | . 5 3 . 1 5 Cannons 6 | . . . . . 6 AOE 13 | . 1 2 . 3 7 Classes Destroyed 13 | . 5 3 . . 5 Worker 2 | . . 1 . . 1 Builder 2 | . . 1 . 1 . Recycler 3 | . 1 . . . 2 Mechanic 1 | . . . . . 1 Operator 3 | . 1 . . . 2 Watcher 1 | . 1 . . . . Swarmer 11 | . 3 . . 4 4 Grunt 15 | . 3 2 . . 10 Brawler 1 | . . . . . 1 Duelist 1 | . . . . . 1 Sentry 1 | . . . . . 1 Hunter 1 | . . . . . 1 Assembled 3 | . . 3 . . . Best Kill Streak 10 | . 3 4 . 3 10 Combat Bots Only 8 | . 3 3 . 3 8 Max Kills in Single Turn 3 | . 1 1 . 2 3 Gunslinging . | . . . . . . Exploded 3 | . 1 1 . 2 3 Melee . | . . . . . . Uniques/NPCs Destroyed . | . . . . . . Combat | -11 -10 -10 -10 -9 -8 -------- Run | Yrd Mat Min Exi Min Mat Hostile Shots Fired 173 | . 41 24 . 29 79 Missed 51 | . 14 7 . 11 19 Damage Taken 1710 | . 262 301 . 186 961 Core 218 | . 8 66 . 28 116 Absorbed by Shields . | . . . . . . Core Remaining (%) 79 | 100 . . . 59 . Volleys Fired 93 | . 19 19 . 11 44 Largest 2 | . 2 2 . 2 2 Hottest 77 | . 50 50 . 53 77 Shots Fired 180 | . 38 34 . 22 86 Gun 136 | . 36 31 . 19 50 Cannon 34 | . . . . . 34 Launcher 10 | . 2 3 . 3 2 Special . | . . . . . . Kinetic 170 | . 36 31 . 19 84 Thermal . | . . . . . . Explosive 10 | . 2 3 . 3 2 Electromagnetic . | . . . . . . Robot Hit Streak 12 | . 5 8 . 2 12 Robot Miss Streak 6 | . 4 3 . 6 4 Penetration Max . | . . . . . . Secondary Targets 1 | . 1 . . . . Max Gunslinging Chain 1 | . 1 . . . . Shots Hit Robots 108 | . 21 23 . 8 56 Core Hits 79 | . 21 12 . 4 42 Critical Kills . | . . . . . . Critical Parts Destroyed . | . . . . . . Critical Strikes 1 | . . . . . 1 Blast 1 | . . . . . 1 Melee Attacks . | . . . . . . Impact . | . . . . . . Slashing . | . . . . . . Piercing . | . . . . . . Sneak Attacks . | . . . . . . Combat Hostiles . | . . . . . . Follow-up Attacks . | . . . . . . Damage Inflicted 2836 | . 362 399 . 301 1774 Guns 1087 | . 231 225 . 98 533 Cannons 550 | . . . . . 550 Explosions 1185 | . 128 165 . 203 689 Melee . | . . . . . . Ramming 14 | . 3 9 . . 2 Kinetic 1637 | . 231 225 . 98 1083 Thermal 319 | . . . . . 319 Explosive 866 | . 128 165 . 203 370 Electromagnetic . | . . . . . . Impact . | . . . . . . Slashing . | . . . . . . Piercing . | . . . . . . Highest Corruption 2 | . . 2 2 2 . Average Corruption 2 | . . 2 2 2 . Corruption Purged . | . . . . . . Corruption Blocked . | . . . . . . Effects 11 | . . 2 9 . . Message Errors 2 | . . . 2 . . Matter Fused 1 | . . . 1 . . Heat Flow Errors 4 | . . . 4 . . Energy Discharges 1 | . . 1 . . . Data Loss (minor) 2 | . . . 2 . . Misfires 1 | . . 1 . . . Overload Shots . | . . . . . . Overflow Damage 241 | . . . . 9 232 Projectiles 19 | . . . . . 19 Explosions 222 | . . . . 9 213 Melee . | . . . . . . Knockbacks 10 | . . . . . 10 Impact . | . . . . . . Kinetic 8 | . . . . . 8 Secondary 2 | . . . . . 2 Self-Inflicted Damage 233 | . . 18 . 38 177 Shots 5 | . . 1 . 1 3 Rammed 4 | . 2 1 . . 1 Targets Rammed 5 | . 2 2 . . 1 Kicked . | . . . . . . Crushed 1 | . . 1 . . . Highest Temperature 158 | . 6 18 158 . 41 Average Temperature 30 | . 6 10 75 . 12 Received Heat Transfer 461 | . 54 119 . . 288 Siege Activations . | . . . . . . Robots Corrupted . | . . . . . . Combat Hostiles . | . . . . . . Parts Fried . | . . . . . . Impact Corruptions . | . . . . . . Robots Melted . | . . . . . . Combat Hostiles . | . . . . . . Parts Melted . | . . . . . . Heat Transferred 200 | . . . . . 200 Parts Sabotaged . | . . . . . . Parts Stolen . | . . . . . . Parts Stripped . | . . . . . . Power Chain Reactions . | . . . . . . Alert | -11 -10 -10 -10 -9 -8 ------- Run | Yrd Mat Min Exi Min Mat Peak Influence 489 | . 170 58 . 122 489 Initial 47 | . . 13 . . 47 Average 60 | . 83 32 . 110 68 Maximum Alert Level 2 | . . . . . 2 Low Security (%) 96 | 100 100 100 . 100 91 Level 1 3 | . . . . . 7 Level 2 . | . . . . . . Level 3 . | . . . . . . Level 4 . | . . . . . . Level 5 . | . . . . . . High Security . | . . . . . . Max Security . | . . . . . . Squads Dispatched 3 | . 1 . . . 2 Investigation . | . . . . . . Extermination . | . . . . . . Reinforcement 3 | . 1 . . . 2 Assault . | . . . . . . Garrison . | . . . . . . Intercept . | . . . . . . Searches Triggered . | . . . . . . Construction Impeded . | . . . . . . Haulers Reinforced . | . . . . . . Active Scanning Responses . | . . . . . . Cargo Convoy Interrupts . | . . . . . . Stealth | -11 -10 -10 -10 -9 -8 --------- Run | Yrd Mat Min Exi Min Mat Distress Signals 4 | . . . . . 4 Communications Jammed . | . . . . . . Distress Signals . | . . . . . . Times Spotted 58 | . 13 5 . 4 36 Peak Tracking Total 9 | . 3 3 . 4 9 Tactical Retreats 2 | . . . . . 2 Traps | -11 -10 -10 -10 -9 -8 ------- Run | Yrd Mat Min Exi Min Mat Traps Triggered . | . . . . . . Indirectly . | . . . . . . Trap Hack Attempts . | . . . . . . Triggered . | . . . . . . Disarmed . | . . . . . . Reprogrammed . | . . . . . . Reused . | . . . . . . Traps Extracted . | . . . . . . Installed . | . . . . . . Triggered . | . . . . . . Machines | -11 -10 -10 -10 -9 -8 ---------- Run | Yrd Mat Min Exi Min Mat Machines Disabled 2 | . 1 . . . 1 Max in Single Turn 1 | . 1 . . . 1 Machines Repaired . | . . . . . . Machines Dismantled . | . . . . . . Machines Sabotaged . | . . . . . . Overloaded Fab Kills . | . . . . . . Hacking | -11 -10 -10 -10 -9 -8 --------- Run | Yrd Mat Min Exi Min Mat Machines Accessed 3 | . 1 1 1 . . Terminals 1 | . 1 . . . . Fabricators . | . . . . . . Repair Stations . | . . . . . . Recycling Units . | . . . . . . Scanalyzers . | . . . . . . Garrison Access . | . . . . . . Total Hacks 5 | . 3 1 1 . . Successful 4 | . 2 1 1 . . Failed 1 | . 1 . . . . Catastrophic . | . . . . . . Database Lockouts . | . . . . . . Manual 1 | . . . 1 . . Terminals 3 | . 3 . . . . Fabricators . | . . . . . . Repair Stations . | . . . . . . Recycling Units . | . . . . . . Scanalyzers . | . . . . . . Garrison Access . | . . . . . . Terminal Hacks 4 | . 2 1 1 . . Prototype ID Bank 1 | . 1 . . . . Open Door 1 | . . 1 . . . Locate Traps 1 | . 1 . . . . Derelict Proto ID Bank 1 | . . . 1 . . Fabricator Hacks . | . . . . . . Repair Station Hacks . | . . . . . . Recycling Unit Hacks . | . . . . . . Scanalyzer . | . . . . . . Garrison Access Hacks . | . . . . . . Unauthorized Hacks . | . . . . . . Terminals . | . . . . . . Fabricators . | . . . . . . Repair Stations . | . . . . . . Recycling Units . | . . . . . . Scanalyzers . | . . . . . . Garrison Access . | . . . . . . Data Cores Recovered . | . . . . . . Used . | . . . . . . Hacking Detections 1 | . 1 . . . . Full Trace Events . | . . . . . . Feedback Events . | . . . . . . Feedback Blocked . | . . . . . . Robot Schematics Acquired . | . . . . . . Robots Built . | . . . . . . Authchips . | . . . . . . Time . | . . . . . . Total Robot Build Rating . | . . . . . . Part Schematics Acquired . | . . . . . . Parts Built . | . . . . . . Authchips . | . . . . . . Time . | . . . . . . Total Part Build Rating . | . . . . . . Parts Repaired . | . . . . . . Time . | . . . . . . Parts Recycled . | . . . . . . Recycled Matter . | . . . . . . Retrieved Matter . | . . . . . . Retrieved Components . | . . . . . . Parts Scanalyzed . | . . . . . . Part Schematics Acquired . | . . . . . . Parts Damaged . | . . . . . . Bothacking | -11 -10 -10 -10 -9 -8 ------------ Run | Yrd Mat Min Exi Min Mat Used RIF Installer . | . . . . . . Robots Hacked . | . . . . . . Non-combat . | . . . . . . Combat . | . . . . . . Robot Hacks Applied . | . . . . . . Relay Couplers Released . | . . . . . . Fabnet Peak Effective % . | . . . . . . Robots Rewired . | . . . . . . Allies Hacked . | . . . . . . Hacks Repelled . | . . . . . . Allies | -11 -10 -10 -10 -9 -8 -------- Run | Yrd Mat Min Exi Min Mat Total Allies . | . . . . . . Largest Group . | . . . . . . Highest-Rated Group . | . . . . . . Highest-Rated Ally . | . . . . . . Total Orders . | . . . . . . Ally Attacks . | . . . . . . Total Damage . | . . . . . . Kills . | . . . . . . Allies Corrupted . | . . . . . . Allies Melted . | . . . . . . Intel | -11 -10 -10 -10 -9 -8 ------- Run | Yrd Mat Min Exi Min Mat Robot Analysis Total . | . . . . . . Derelict Logs Recovered 2 | . . 2 . . . Drone Launches . | . . . . . . Drone Recoveries . | . . . . . . Exploration | -11 -10 -10 -10 -9 -8 ------------- Run | Yrd Mat Min Exi Min Mat Turns Passed 3051 | 57 466 806 437 124 1161 Spaces Moved 1257 | 36 241 433 215 37 295 Core 11 | 11 . . . . . Treads 1246 | 25 241 433 215 37 295 Legs . | . . . . . . Wheels . | . . . . . . Hover . | . . . . . . Flight . | . . . . . . Fastest Speed 50 | 50 160 160 165 245 163 Average Speed 187 | 126 160 164 202 245 232 Slowest Speed 330 | 160 160 170 245 245 330 Overloaded Moves . | . . . . . . Propulsion Burnouts . | . . . . . . Robots Hopped . | . . . . . . Cave-ins Triggered . | . . . . . . Exploration Rate (%) 33 | 4 41 78 41 14 23 Regions Visited 5 Branch Regions 3 Pre-discovered Areas 1 | . . 1 . . . Known Exits Taken . | . . . . . . Unknown Exits Taken 5 | 1 1 1 1 1 . Scrap Searched 1 | . . 1 . . . Spaces Dug . | . . . . . . Terrain Destroyed 113 | . 21 11 . 27 54 Melee . | . . . . . . Projectile 5 | . . . . . 5 AOE 108 | . 21 11 . 27 49 Terrain Rammed . | . . . . . . Walls Destroyed . | . . . . . . Machines Disabled . | . . . . . . Actions | -11 -10 -10 -10 -9 -8 --------- Run | Yrd Mat Min Exi Min Mat Total 1793 | 48 284 496 217 50 698 Wait 372 | . 10 25 . . 337 Move 1252 | 35 240 432 214 36 295 Hop . | . . . . . . Pick Up 29 | 7 8 6 1 . 7 Fast Attach . | . . . . . . Attach 17 | 6 1 2 . 1 7 Detach . | . . . . . . Swap 16 | . 4 4 1 2 5 Drop 9 | . . 6 1 . 2 Fire 93 | . 19 19 . 11 44 Melee . | . . . . . . Ram . | . . . . . . Kick . | . . . . . . Crush 5 | . 2 2 . . 1 Escape Stasis . | . . . . . . Rewire . | . . . . . . Trap . | . . . . . . Miscellaneous . | . . . . . . Route ------- -11/Scrapyard -10/Materials -10/Mines (discovered 2 exits: [*Mat] / *Exi) -10/Exiles -9/Mines -8/Materials History --------- Turn | Location | Event 8 | -11/Scrapyard | Discovered new exit (range 13) 58 | -11/Scrapyard | Entered Materials 311 | -10/Materials | Build established: Mutant 476 | -10/Materials | Discovered new exit (range 9) 524 | -10/Materials | Entered Mines 537 | -10/Mines | Learned Materials terminal intel 556 | -10/Mines | Met a Derelict who couldn't figure out how to use a Trap Extractor 633 | -10/Mines | Assembled infested the area 1269 | -10/Mines | Discovered new exit (range 8) 1294 | -10/Mines | Received a Rocket Launcher from a helpful Derelict 1324 | -10/Mines | Deemed a non-threat by the Exiles lab entrance 1324 | -10/Mines | Discovered new exit (range 5) 1330 | -10/Mines | Entered Exiles 1370 | -10/Exiles | Met 8R-AWN 1398 | -10/Exiles | Met EX-HEX 1448 | -10/Exiles | Met EX-BIN 1466 | -10/Exiles | Aligned with FarCom system 1467 | -10/Exiles | Given EX-Vault access code 1505 | -10/Exiles | Opened EX-Vault 1521 | -10/Exiles | Found Army-in-a-Box 1573 | -10/Exiles | Warned to stay clear of 0b10 Research branches 1735 | -10/Exiles | Discovered new exit (range 14) 1767 | -10/Exiles | Left Exiles lab with Army-in-a-Box 1767 | -10/Exiles | Entered Mines 1805 | -9/Mines | Discovered new exit (range 12) 1891 | -9/Mines | Entered Materials 1891 | -8/Materials | Evolved 4 slots: Propulsion x1, Utility x3 1892 | -8/Materials | Loaded intel: 12 terminal locations 3052 | -8/Materials | Self-destructed Last Messages --------------- Fusion Modulator explodes. Rocket Launcher destroyed. Destroyed Rocket Launcher. Lgt. Treads destroyed. Destroyed Lgt. Treads. S-10 Pest destroyed. Destroyed Lgt. Ion Engine. Destroyed Flight Unit. Destroyed Com. Wheel. R-06 Scavenger destroyed. Destroyed Flight Unit. S-10 Pest destroyed. U-05 Engineer builds a Wall. K-01 Serf collects debris. Assault Rifle destroyed. S-10 Pest destroyed. U-05 Engineer lays Concrete. K-01 Serf collects debris. U-05 Engineer lays Concrete. U-05 Engineer builds a Wall. Map ----- +----------------------------------------------------+ | | | | | | | | | ?????????????????????????????????????????????????? | | ?????????????????????????????????????????????????? | | ?????????????????????????????????????????????????? | | ?????????????????????????????????????????????????? | | ?????????????????????????????????????????????????? | | ?????????????????????????????????????????????????? | | ?????????????????????????????????????????????????? | | ?????????????????????????????????????????????????? | | ??????????????????? ?????????????????????????????? | | ??????????????????? ????????????????????????????? | | ?????????????????###+#??####????###??????????????? | | ????????????????? ??# ?? #??????????????? | | ?????????????????"" =?# = #??????????????? | | ???????????????#""" w ?# !#??????????????? | | ???????????????#""" s ?# ##?????????????? | | ???????????????? s !# " " !! Y#?????????????? | | ????????????????""" # "R" !! ???????????????? | | ????????????????""" !ss# """ !!?????????T??????? | | ???????????????#""" ; ??????????????????? | | ???????????????# ;; ;#/#?????????????????? | | ???????????????????#;;;; =# ##????????????????? | | ????????????######?# ; @ [ # #????????????????? | | ???????????##!!!!## ; = ##????????????????? | | ???????????#! !## ; ][ #????????????????? | | ???????????# ## ; =[ = #????????????????? | | ???????????# #### ; * = ##????????????????? | | ???????????# #####;;;;! ! ##????????????????? | | ???????????# [ k =% % % ?T???????? | | ???????????# ### ###;#u;;#######???????????????? | | ???????????####### #?###a###?????????????????????? | | ?????????????????# #???#u#????????T??????????????? | | ?????????????????# #???# #???????????????????????? | | ????????????????##+#####+#???????????????????????? | | ???????########## #???????????????????????? | | ???????# ! # #???????????????????????? | | ?#####?# """ # #??????????????""???????? | | ?# ### """ # #??????????????""???????? | | ?# + """ # #########??????"T???????? | | ?# ### """ # + ???????""???????? | | ?## ##?# """ # #######????????""???????? | | ??# #??# # ! #???????????????????????? | | ??# #??# # #???????????????????????? | | ??# #??# #####+####???????????????????????? | | ?## ###########+###%%% #????????????????????????? | | ?# %!% ! * #????????????????????????? | | ?# [ ! #????????????????????????? | +----------------------------------------------------+ Best States ------------- Heat Dissipation 45 Energy Generation 10 Energy Capacity 125 Matter Stores 300 Matter Capacity 300 Sight Range 16 Terrain Scan Density 10 Evasion (%) 40 Targeting Accuracy 8 Recoil Reduction 3 Offensive Hacking 10 Item Schematics ----------------- None Robot Schematics ------------------ None Fabricated ------------ Nothing Alien Tech Used ----------------- None Achievements -------------- None Challenges ------------ None Game ------ Seed WarpVariableMicrothruster Manual? 0 Play Time 00:15:48 Cumulative 22.5 hours Start 2024.04.26 @ 18:51:47 End 2024.04.26 @ 19:10:19 Sessions 1 Manual Loads 0 Difficulty Rogue Special Mode None Game No. 36 Rogue 34 Adventurer 2 Explorer 0 Win Type - Total 0 Types 0/0/0/0/0/0/0/0/0 Lore% 26 Gallery% 20 Achievement% 21 Wizard Run 0 Options --------- Layout 1 ASCII 0 Keyboard 0 Movement Mouse Keybinds 0 Fullscreen 1 Font 24/Smallcaps Map View 50x40 Zoom Use 0% Tactical HUD 0 Map Filters NONE Filters NONE Steam 1 RUN: 293f62cb-0b7e-468e-84e2-7dc1f0d20d03